[Event "ISR-chT 2020"]
[Site "Israel"]
[Date "2020.01.17"]
[Round "3.2"]
[White "Veinberg, Nimrod"]
[Black "Dvoirys, Semen I."]
[Result "0-1"]
[ECO "D85"]
[WhiteElo "2402"]
[BlackElo "2466"]
[Annotator "ChessBase"]
[PlyCount "80"]
[EventDate "2020.01.10"]
[EventType "team-tourn"]
[EventCountry "ISR"]
[SourceTitle "playchess.com"]
[Source "ChessBase"]
[SourceQuality "1"]
[TimeControl "40/5400+30:1800+30"]

1. d4 {[%emt 0:00:00]} Nf6 {[%emt 0:03:37]} 2. c4 {[%emt 0:00:05]} g6 {[%emt 0:00:08]} 3. Nc3 {[%emt 0:00:06]} d5 {[%emt 0:00:20]} 4. cxd5 {[%emt 0:00:10]} Nxd5 {[%emt 0:00:04]} 5. e4 {[%emt 0:00:09]} Nxc3 {[%emt 0:00:05]} 6. bxc3 {[%emt 0:00:06]} Bg7 {[%emt 0:00:03]} 7. Be3 {[%emt 0:00:33]} c5 {[%emt 0:00:22]} 8. Qd2 {[%emt 0:01:26]} Qa5 {[%emt 0:00:15]} 9. Rc1 {[%emt 0:00:25]} Nd7 {[%emt 0:01:55]} 10. Nf3 {[%emt 0:00:53]} Nf6 {[%emt 0:01:12]} 11. Bd3 {[%emt 0:00:48]} O-O {[%emt 0:00:09]} 12. O-O {[%emt 0:05:02]} Bd7 {[%emt 0:17:35]} 13. Rb1 {[%emt 0:16:55]} b6 {[%emt 0:09:13]} 14. Ne5 {[%emt 0:02:09]} Rfd8 {[%emt 0:10:45]} 15. Rfc1 {[%emt 0:14:05]} Be8 {[%emt 0:07:49]} 16. Qe2 {[%emt 0:00:52]} Rac8 {[%emt 0:00:21]} 17. Bd2 {[%emt 0:10:26]} cxd4 {[%emt 0:05:26]} 18. cxd4 {[%emt 0:00:36]} Rxc1+ {[%emt 0:01:52]} 19. Rxc1 {[%emt 0:00:46]} Qxa2 {[%emt 0:00:09]} 20. Qe3 {[%emt 0:07:30]} Nxe4 {[%emt 0:03:36]} 21. Bb4 {[%emt 0:15:15]} Nd6 {[%emt 0:03:20]} 22. Nc4 {[%emt 0:04:11]} Nc8 {[%emt 0:08:59]} 23. Bxe7 {[%emt 0:02:49]} Bxd4 {[%emt 0:01:16]} 24. Bxd8 {[%emt 0:01:08]} Bxe3 {[%emt 0:00:05]} 25. Nxe3 {[%emt 0:00:15]} Nd6 {[%emt 0:01:22]} 26. h3 {[%emt 0:05:38]} Qa3 {[%emt 0:01:37]} 27. Rd1 {[%emt 0:00:02]} Ba4 {[%emt 0:00:19]} 28. Rd2 {[%emt 0:00:54]} Qc3 {[%emt 0:01:18]} 29. Nf1 {[%emt 0:00:29]} Bb5 {[%emt 0:01:55]} 30. Bxb5 {[%emt 0:02:10]} Nxb5 {[%emt 0:00:06]} 31. Bg5 {[%emt 0:03:18]} Kg7 {[%emt 0:00:56]} 32. Ng3 {[%emt 0:01:04]} h6 {[%emt 0:00:44]} 33. Be3 {[%emt 0:00:12]} a5 {[%emt 0:03:43]} 34. Rd8 {[%emt 0:00:18]} a4 {[%emt 0:00:49]} 35. Ra8 {[%emt 0:04:19]} a3 {[%emt 0:00:39]} 36. Bxb6 {[%emt 0:02:12]} Qc6 {[%emt 0:00:15]} 37. Ra6 {[%emt 0:00:18]} Qb7 {[%emt 0:00:06]} 38. Bd4+ {[%emt 0:00:09]} Nxd4 {[%emt 0:00:06]} 39. Rxa3 {[%emt 0:00:04]} Qb1+ {[%emt 0:00:23]} 40. Kh2 {[%emt 0:00:09]} Qb2 {[%emt 0:00:11]} 0-1

[Event "ISR-chT 2020"]
[Site "Israel"]
[Date "2020.01.17"]
[Round "3.6"]
[White "Psakhis, Lev"]
[Black "Klenburg, Michael"]
[Result "1/2-1/2"]
[ECO "B07"]
[WhiteElo "2456"]
[BlackElo "2357"]
[Annotator "ChessBase"]
[PlyCount "53"]
[EventDate "2020.01.10"]
[EventType "team-tourn"]
[EventCountry "ISR"]
[SourceTitle "playchess.com"]
[Source "ChessBase"]
[SourceQuality "1"]
[TimeControl "40/5400+30:1800+30"]

1. e4 {[%emt 0:00:00]} d6 {[%emt 0:02:50]} 2. d4 {[%emt 0:00:00]} Nf6 {[%emt 0:00:12]} 3. f3 {[%emt 0:00:06]} e5 {[%emt 0:00:38]} 4. d5 {[%emt 0:00:09]} Be7 {[%emt 0:00:28]} 5. c4 {[%emt 0:01:27]} O-O {[%emt 0:00:33]} 6. Nc3 {[%emt 0:02:05]} c6 {[%emt 0:00:23]} 7. Be3 {[%emt 0:00:12]} a6 {[%emt 0:02:36]} 8. Bd3 {[%emt 0:05:42]} Nh5 {[%emt 0:02:41]} 9. Qd2 {[%emt 0:10:56]} h6 {[%emt 0:01:52]} 10. Nge2 {[%emt 0:28:22]} Bg5 {[%emt 0:00:51]} 11. h4 {[%emt 0:05:32]} Bxe3 {[%emt 0:08:26]} 12. Qxe3 {[%emt 0:00:08]} Qf6 {[%emt 0:00:27]} 13. g3 {[%emt 0:04:04]} c5 {[%emt 0:01:48]} 14. a4 {[%emt 0:07:51]} Re8 {[%emt 0:01:48]} 15. Kd2 {[%emt 0:00:13]} Nd7 {[%emt 0:01:24]} 16. Rag1 {[%emt 0:04:04]} Qd8 {[%emt 0:02:20]} 17. g4 {[%emt 0:05:22]} Nf4 {[%emt 0:00:33]} 18. Nxf4 {[%emt 0:00:10]} exf4 {[%emt 0:00:05]} 19. Qxf4 {[%emt 0:00:02]} Ne5 {[%emt 0:00:14]} 20. Ra1 {[%emt 0:06:21]} Bd7 {[%emt 0:01:28]} 21. g5 {[%emt 0:01:31]} h5 {[%emt 0:01:54]} 22. Be2 {[%emt 0:01:15]} Qb6 {[%emt 0:10:23]} 23. Kc2 {[%emt 0:01:05]} Qb4 {[%emt 0:01:08]} 24. a5 {[%emt 0:01:47]} b5 {[%emt 0:02:47]} 25. axb6 {[%emt 0:01:37]} a5 {[%emt 0:04:23]} 26. Ra3 {[%emt 0:09:42]} a4 {[%emt 0:01:56]} 27. Rb1 {[%emt 0:01:22]} 1/2-1/2

[Event "ISR-chT 2020"]
[Site "Israel"]
[Date "2020.01.17"]
[Round "3.8"]
[White "Gruenfeld, Yehuda"]
[Black "Emanuel, Yahav"]
[Result "1/2-1/2"]
[ECO "C65"]
[WhiteElo "2432"]
[BlackElo "2356"]
[Annotator "ChessBase"]
[PlyCount "49"]
[EventDate "2020.01.10"]
[EventType "team-tourn"]
[EventCountry "ISR"]
[SourceTitle "playchess.com"]
[Source "ChessBase"]
[SourceQuality "1"]
[TimeControl "40/5400+30:1800+30"]

1. e4 {[%emt 0:07:28]} e5 {[%emt 0:00:00]} 2. Nf3 {[%emt 0:01:11]} Nc6 {[%emt 0:00:00]} 3. Bb5 {[%emt 0:00:09]} Bc5 {[%emt 0:00:41]} 4. O-O {[%emt 0:02:20]} Nf6 {[%emt 0:00:17]} 5. Bxc6 {[%emt 0:01:12]} dxc6 {[%emt 0:00:28]} 6. d3 {[%emt 0:00:04]} Nd7 {[%emt 0:03:45]} 7. Be3 {[%emt 0:05:44]} Bd6 {[%emt 0:06:39]} 8. Nbd2 {[%emt 0:00:57]} O-O {[%emt 0:12:46]} 9. c3 {[%emt 0:06:19]} b6 {[%emt 0:19:45]} 10. Qc2 {[%emt 0:09:31]} c5 {[%emt 0:07:36]} 11. Rfe1 {[%emt 0:01:43]} Re8 {[%emt 0:04:28]} 12. Rad1 {[%emt 0:05:00]} Qe7 {[%emt 0:02:48]} 13. d4 {[%emt 0:05:33]} Ba6 {[%emt 0:09:41]} 14. dxe5 {[%emt 0:05:16]} Nxe5 {[%emt 0:06:40]} 15. Nxe5 {[%emt 0:00:32]} Qxe5 {[%emt 0:00:13]} 16. f4 {[%emt 0:01:07]} Qh5 {[%emt 0:06:30]} 17. e5 {[%emt 0:00:19]} Be2 {[%emt 0:00:55]} 18. Rc1 {[%emt 0:02:54]} Be7 {[%emt 0:03:28]} 19. Ne4 {[%emt 0:02:09]} Bb5 {[%emt 0:03:05]} 20. Ng3 {[%emt 0:04:36]} Qg4 {[%emt 0:02:28]} 21. Qe4 {[%emt 0:04:51]} Bh4 {[%emt 0:03:33]} 22. Bf2 {[%emt 0:00:42]} Rad8 {[%emt 0:01:15]} 23. c4 {[%emt 0:03:51]} Bxg3 {[%emt 0:01:02]} 24. hxg3 {[%emt 0:01:45]} Ba6 {[%emt 0:01:11]} 25. a3 {[%emt 0:02:51]} 1/2-1/2

[Event "ISR-chT 2020"]
[Site "Israel"]
[Date "2020.01.17"]
[Round "3.11"]
[White "Lavi, Idan"]
[Black "Polyakov, Alex"]
[Result "0-1"]
[ECO "A48"]
[WhiteElo "2095"]
[BlackElo "2235"]
[Annotator "ChessBase"]
[PlyCount "92"]
[EventDate "2020.01.10"]
[EventType "team-tourn"]
[EventCountry "ISR"]
[SourceTitle "playchess.com"]
[Source "ChessBase"]
[SourceQuality "1"]
[TimeControl "40/5400+30:1800+30"]

1. d4 {[%emt 0:00:31]} b6 {[%emt 0:00:00]} 2. Nf3 {[%emt 0:02:55]} Nf6 {[%emt 0:00:00]} 3. Bf4 {[%emt 0:00:40]} Bb7 {[%emt 0:01:10]} 4. e3 {[%emt 0:01:28]} c5 {[%emt 0:01:15]} 5. c3 {[%emt 0:01:27]} g6 {[%emt 0:00:11]} 6. Nbd2 {[%emt 0:01:39]} Bg7 {[%emt 0:00:11]} 7. Bd3 {[%emt 0:02:00]} O-O {[%emt 0:00:18]} 8. O-O {[%emt 0:02:37]} d6 {[%emt 0:00:58]} 9. Qe2 {[%emt 0:08:39]} Nbd7 {[%emt 0:19:23]} 10. e4 {[%emt 0:11:09]} cxd4 {[%emt 0:02:59]} 11. cxd4 {[%emt 0:05:51]} Nh5 {[%emt 0:01:35]} 12. Bg5 {[%emt 0:01:25]} h6 {[%emt 0:00:16]} 13. Be3 {[%emt 0:03:03]} e5 {[%emt 0:04:36]} 14. g3 {[%emt 0:02:42]} exd4 {[%emt 0:13:09]} 15. Bxd4 {[%emt 0:01:11]} Nc5 {[%emt 0:00:24]} 16. Bxg7 {[%emt 0:03:03]} Kxg7 {[%emt 0:00:22]} 17. b4 {[%emt 0:12:01]} Nxd3 {[%emt 0:02:06]} 18. Qxd3 {[%emt 0:01:26]} Nf6 {[%emt 0:03:19]} 19. Rfe1 {[%emt 0:01:09]} Re8 {[%emt 0:00:48]} 20. Rad1 {[%emt 0:00:50]} Rc8 {[%emt 0:01:54]} 21. Qd4 {[%emt 0:03:09]} Qc7 {[%emt 0:03:30]} 22. h4 {[%emt 0:09:03]} Qc3 {[%emt 0:02:14]} 23. Qxc3 {[%emt 0:06:02]} Rxc3 {[%emt 0:00:20]} 24. Nd4 {[%emt 0:02:06]} Rd3 {[%emt 0:05:38]} 25. Nb5 {[%emt 0:11:49]} Nxe4 {[%emt 0:01:44]} 26. f3 {[%emt 0:02:34]} Nxd2 {[%emt 0:00:28]} 27. Rxe8 {[%emt 0:00:42]} Nxf3+ {[%emt 0:00:13]} 28. Kf2 {[%emt 0:00:29]} Rxd1 {[%emt 0:00:11]} 29. Re7 {[%emt 0:00:16]} Rd2+ {[%emt 0:03:59]} 30. Ke3 {[%emt 0:00:44]} Ba6 {[%emt 0:00:32]} 31. a4 {[%emt 0:00:26]} Bxb5 {[%emt 0:00:37]} 32. axb5 {[%emt 0:00:02]} Rd5 {[%emt 0:00:53]} 33. Kxf3 {[%emt 0:00:09]} Rxb5 {[%emt 0:00:03]} 34. Rxa7 {[%emt 0:00:25]} Kf6 {[%emt 0:01:18]} 35. Ra4 {[%emt 0:00:40]} Ke5 {[%emt 0:00:16]} 36. Ke3 {[%emt 0:00:16]} h5 {[%emt 0:00:29]} 37. Kd3 {[%emt 0:00:32]} Rd5+ {[%emt 0:00:34]} 38. Ke3 {[%emt 0:01:36]} Rd4 {[%emt 0:00:24]} 39. Ra7 {[%emt 0:00:32]} Rxb4 {[%emt 0:00:16]} 40. Rxf7 {[%emt 0:00:11]} Rg4 {[%emt 0:31:27]} 41. Kf3 {[%emt 0:10:52]} b5 {[%emt 0:00:00]} 42. Rb7 {[%emt 0:00:30]} b4 {[%emt 0:00:00]} 43. Rb8 {[%emt 0:00:17]} Kd5 {[%emt 0:00:00]} 44. Rb7 {[%emt 0:01:03]} Kc4 {[%emt 0:00:00]} 45. Rc7+ {[%emt 0:00:16]} Kd3 {[%emt 0:00:00]} 46. Rd7 {[%emt 0:01:20]} Rd4 {[%emt 0:00:00]} 0-1

[Event "ISR-chT 2020"]
[Site "Israel"]
[Date "2020.01.17"]
[Round "3.15"]
[White "Caspi, Israel"]
[Black "Zanan, Evgeny"]
[Result "1-0"]
[ECO "B90"]
[WhiteElo "2474"]
[BlackElo "2503"]
[Annotator "ChessBase"]
[PlyCount "71"]
[EventDate "2020.01.10"]
[EventType "team-tourn"]
[EventCountry "ISR"]
[SourceTitle "playchess.com"]
[Source "ChessBase"]
[SourceQuality "1"]
[TimeControl "40/5400+30:1800+30"]

1. e4 {[%emt 0:02:08]} c5 {[%emt 0:35:26]} 2. Nf3 {[%emt 0:00:06]} d6 {[%emt 0:00:21]} 3. d4 {[%emt 0:00:05]} cxd4 {[%emt 0:00:04]} 4. Nxd4 {[%emt 0:00:03]} Nf6 {[%emt 0:00:05]} 5. Nc3 {[%emt 0:00:05]} a6 {[%emt 0:00:03]} 6. f3 {[%emt 0:00:04]} e5 {[%emt 0:00:07]} 7. Nb3 {[%emt 0:00:06]} Be6 {[%emt 0:00:05]} 8. Be3 {[%emt 0:00:09]} Nbd7 {[%emt 0:00:29]} 9. g4 {[%emt 0:00:07]} b5 {[%emt 0:00:07]} 10. g5 {[%emt 0:00:05]} b4 {[%emt 0:00:50]} 11. Nd5 {[%emt 0:00:04]} Nxd5 {[%emt 0:00:10]} 12. exd5 {[%emt 0:00:02]} Bf5 {[%emt 0:00:05]} 13. Bd3 {[%emt 0:00:07]} Bxd3 {[%emt 0:00:12]} 14. Qxd3 {[%emt 0:00:02]} Be7 {[%emt 0:01:23]} 15. h4 {[%emt 0:00:07]} O-O {[%emt 0:00:47]} 16. O-O-O {[%emt 0:00:05]} f5 {[%emt 0:05:20]} 17. Kb1 {[%emt 0:04:04]} Qc7 {[%emt 0:06:49]} 18. f4 {[%emt 0:23:48]} Rac8 {[%emt 0:10:51]} 19. Rh2 {[%emt 0:09:21]} a5 {[%emt 0:08:36]} 20. Qb5 {[%emt 0:01:29]} Ra8 {[%emt 0:04:28]} 21. fxe5 {[%emt 0:08:28]} f4 {[%emt 0:07:57]} 22. Bc1 {[%emt 0:03:44]} Nxe5 {[%emt 0:03:16]} 23. Nd4 {[%emt 0:01:35]} Rab8 {[%emt 0:07:19]} 24. Ne6 {[%emt 0:05:51]} Qa7 {[%emt 0:00:11]} 25. Qf1 {[%emt 0:03:10]} f3 {[%emt 0:01:07]} 26. Nxf8 {[%emt 0:02:38]} Rxf8 {[%emt 0:00:04]} 27. Qh3 {[%emt 0:05:17]} a4 {[%emt 0:04:37]} 28. h5 {[%emt 0:02:34]} b3 {[%emt 0:01:55]} 29. h6 {[%emt 0:07:22]} g6 {[%emt 0:00:16]} 30. Qe6+ {[%emt 0:06:02]} Rf7 {[%emt 0:00:25]} 31. axb3 {[%emt 0:02:51]} axb3 {[%emt 0:00:02]} 32. cxb3 {[%emt 0:00:07]} f2 {[%emt 0:00:54]} 33. Rf1 {[%emt 0:00:51]} Nd3 {[%emt 0:00:56]} 34. Be3 {[%emt 0:01:02]} Qa5 {[%emt 0:01:03]} 35. Rhxf2 {[%emt 0:00:54]} Nxf2 {[%emt 0:00:05]} 36. Rxf2 {[%emt 0:00:05]} 1-0

[Event "ISR-chT 2020"]
[Site "Israel"]
[Date "2020.01.17"]
[Round "3.16"]
[White "Kobo, Ori"]
[Black "Zifroni, Dov"]
[Result "1/2-1/2"]
[ECO "E04"]
[WhiteElo "2445"]
[BlackElo "2452"]
[Annotator "RC"]
[PlyCount "32"]
[EventDate "2020.01.10"]
[EventType "team-tourn"]
[EventCountry "ISR"]
[SourceTitle "playchess.com"]
[Source "ChessBase"]
[SourceQuality "1"]
[TimeControl "40/5400+30:1800+30"]

1. d4 {[%emt 0:14:13]} Nf6 {[%emt 0:00:00]} 2. c4 {[%emt 0:00:24]} e6 {[%emt 0:00:00]} 3. g3 {[%emt 0:00:14]} d5 {[%emt 0:00:00]} 4. Bg2 {[%emt 0:00:21]} dxc4 {[%emt 0:00:14]} 5. Nf3 {[%emt 0:00:10]} c5 {[%emt 0:00:05]} 6. O-O {[%emt 0:00:28]} Nc6 {[%emt 0:00:01]} 7. Qa4 {[%emt 0:00:56]} Bd7 {[%emt 0:00:18]} 8. dxc5 {[%emt 0:00:09]} Na5 {[%emt 0:02:59]} 9. Qa3 {[%emt 0:01:30]} Rc8 {[%emt 0:02:11]} 10. b4 {[%emt 0:01:07]} cxb3 {[%emt 0:01:00]} 11. axb3 {[%emt 0:00:16]} Rxc5 {[%emt 0:01:01]} 12. Qb2 {[%emt 0:18:12]} Be7 {[%emt 0:10:04]} 13. b4 {[%emt 0:01:39]} Nc4 {[%emt 0:00:22]} 14. Qd4 {[%emt 0:04:25]} Rc8 {[%emt 0:01:07]} 15. Rxa7 {[%emt 0:02:28]} Bxb4 {[%emt 0:04:10]} 16. Rxb7 {[%emt 0:02:01]} Bc5 {[%emt 0:01:08]} 1/2-1/2

[Event "ISR-chT 2020"]
[Site "Israel"]
[Date "2020.01.17"]
[Round "3.22"]
[White "Oratovsky, Michael"]
[Black "Golod, Vitali"]
[Result "1/2-1/2"]
[ECO "B51"]
[WhiteElo "2434"]
[BlackElo "2503"]
[Annotator "ChessBase"]
[PlyCount "34"]
[EventDate "2020.01.10"]
[EventType "team-tourn"]
[EventCountry "ISR"]
[SourceTitle "playchess.com"]
[Source "ChessBase"]
[SourceQuality "1"]
[TimeControl "40/5400+30:1800+30"]

1. e4 {[%emt 0:00:00]} c5 {[%emt 0:00:08]} 2. Nf3 {[%emt 0:00:00]} d6 {[%emt 0:01:10]} 3. Bb5+ {[%emt 0:00:13]} Nd7 {[%emt 0:00:55]} 4. O-O {[%emt 0:00:14]} a6 {[%emt 0:01:08]} 5. Bxd7+ {[%emt 0:13:37]} Bxd7 {[%emt 0:04:10]} 6. d4 {[%emt 0:00:06]} cxd4 {[%emt 0:00:11]} 7. Qxd4 {[%emt 0:00:05]} e5 {[%emt 0:01:08]} 8. Qd3 {[%emt 0:00:19]} Rc8 {[%emt 0:00:38]} 9. c4 {[%emt 0:12:37]} b5 {[%emt 0:01:18]} 10. Nfd2 {[%emt 0:29:10]} Nf6 {[%emt 0:08:20]} 11. Nc3 {[%emt 0:13:56]} Qb6 {[%emt 0:03:34]} 12. b3 {[%emt 0:22:12]} Be7 {[%emt 0:09:44]} 13. a4 {[%emt 0:00:07]} O-O {[%emt 0:20:24]} 14. axb5 {[%emt 0:00:19]} axb5 {[%emt 0:02:43]} 15. Nxb5 {[%emt 0:00:06]} Bxb5 {[%emt 0:00:43]} 16. cxb5 {[%emt 0:00:02]} Rb8 {[%emt 0:01:02]} 17. Ra6 {[%emt 0:03:32]} Qxb5 {[%emt 0:00:52]} 1/2-1/2

[Event "ISR-chT 2020"]
[Site "Israel"]
[Date "2020.01.17"]
[Round "3.23"]
[White "Kogan, Arthur"]
[Black "Chernomordik, Pavel"]
[Result "1-0"]
[ECO "B06"]
[WhiteElo "2524"]
[BlackElo "2218"]
[Annotator "ChessBase"]
[PlyCount "83"]
[EventDate "2020.01.10"]
[EventType "team-tourn"]
[EventCountry "ISR"]
[SourceTitle "playchess.com"]
[Source "ChessBase"]
[SourceQuality "1"]
[TimeControl "40/5400+30:1800+30"]

1. e4 {[%emt 0:00:04]} g6 {[%emt 0:00:00]} 2. d4 {[%emt 0:00:06]} Bg7 {[%emt 0:00:00]} 3. Nc3 {[%emt 0:00:06]} d6 {[%emt 0:00:00]} 4. Bg5 {[%emt 0:01:54]} h6 {[%emt 0:00:32]} 5. Be3 {[%emt 0:00:35]} a6 {[%emt 0:00:35]} 6. Qd2 {[%emt 0:04:23]} b5 {[%emt 0:01:59]} 7. Nge2 {[%emt 0:01:06]} Bb7 {[%emt 0:00:59]} 8. f3 {[%emt 0:00:28]} Nd7 {[%emt 0:00:17]} 9. d5 {[%emt 0:07:15]} Ne5 {[%emt 0:07:14]} 10. Nd4 {[%emt 0:00:34]} Nf6 {[%emt 0:02:04]} 11. a4 {[%emt 0:01:39]} bxa4 {[%emt 0:03:14]} 12. Be2 {[%emt 0:04:34]} c5 {[%emt 0:02:36]} 13. dxc6 {[%emt 0:00:31]} Nxc6 {[%emt 0:00:03]} 14. Nxc6 {[%emt 0:05:52]} Bxc6 {[%emt 0:00:07]} 15. Nxa4 {[%emt 0:00:14]} Nd7 {[%emt 0:03:33]} 16. O-O {[%emt 0:02:05]} O-O {[%emt 0:04:55]} 17. Ra2 {[%emt 0:10:49]} Bb5 {[%emt 0:11:02]} 18. c4 {[%emt 0:07:20]} Bxa4 {[%emt 0:01:32]} 19. Rxa4 {[%emt 0:00:13]} Nc5 {[%emt 0:00:03]} 20. Ra3 {[%emt 0:07:10]} a5 {[%emt 0:01:00]} 21. b3 {[%emt 0:00:21]} Rb8 {[%emt 0:06:04]} 22. Bd1 {[%emt 0:02:25]} h5 {[%emt 0:08:38]} 23. Bc2 {[%emt 0:01:40]} Qb6 {[%emt 0:07:32]} 24. f4 {[%emt 0:06:38]} Qb4 {[%emt 0:11:54]} 25. Qxb4 {[%emt 0:03:55]} axb4 {[%emt 0:02:31]} 26. Ra7 {[%emt 0:00:13]} Ra8 {[%emt 0:06:24]} 27. Rxe7 {[%emt 0:03:49]} Ra2 {[%emt 0:00:29]} 28. Bd1 {[%emt 0:11:45]} Bf6 {[%emt 0:00:56]} 29. Rc7 {[%emt 0:01:33]} Nxe4 {[%emt 0:00:41]} 30. f5 {[%emt 0:01:49]} Nd2 {[%emt 0:04:13]} 31. Re1 {[%emt 0:06:06]} Bc3 {[%emt 0:01:52]} 32. Bh6 {[%emt 0:03:13]} Nxc4 {[%emt 0:05:04]} 33. Ree7 {[%emt 0:04:30]} Bd4+ {[%emt 0:04:02]} 34. Kf1 {[%emt 0:00:36]} Rf2+ {[%emt 0:00:45]} 35. Ke1 {[%emt 0:00:17]} Nb2 {[%emt 0:00:42]} 36. Be2 {[%emt 0:01:00]} Ra8 {[%emt 0:01:21]} 37. fxg6 {[%emt 0:00:37]} fxg6 {[%emt 0:02:53]} 38. Rg7+ {[%emt 0:00:37]} Kh8 {[%emt 0:00:23]} 39. Rh7+ {[%emt 0:00:10]} Kg8 {[%emt 0:00:08]} 40. Rcg7+ {[%emt 0:00:09]} Bxg7 {[%emt 0:00:12]} 41. Rxg7+ {[%emt 0:30:05]} Kh8 {[%emt 0:30:26]} 42. Kxf2 {[%emt 0:00:12]} 1-0

[Event "ISR-chT 2020"]
[Site "Israel"]
[Date "2020.01.17"]
[Round "3.28"]
[White "Mesropov, Konstantin"]
[Black "Manor, Ilan"]
[Result "1/2-1/2"]
[ECO "A45"]
[WhiteElo "2416"]
[BlackElo "2457"]
[Annotator "ChessBase"]
[PlyCount "63"]
[EventDate "2020.01.10"]
[EventType "team-tourn"]
[EventCountry "ISR"]
[SourceTitle "playchess.com"]
[Source "ChessBase"]
[SourceQuality "1"]
[TimeControl "40/5400+30:1800+30"]

1. d4 {[%emt 1:30:30]} Nf6 {[%emt 0:07:45]} 2. Bg5 {[%emt 0:00:00]} c5 {[%emt 0:00:45]} 3. Bxf6 {[%emt 0:00:00]} gxf6 {[%emt 0:00:07]} 4. d5 {[%emt 0:00:00]} f5 {[%emt 0:00:24]} 5. c4 {[%emt 0:00:00]} b5 {[%emt 0:04:29]} 6. cxb5 {[%emt 0:00:00]} a6 {[%emt 0:03:27]} 7. bxa6 {[%emt 0:00:00]} Bg7 {[%emt 0:04:09]} 8. Nc3 {[%emt 0:00:00]} Qa5 {[%emt 0:10:50]} 9. Qd2 {[%emt 0:00:00]} Nxa6 {[%emt 0:00:09]} 10. e3 {[%emt 0:00:00]} Nb4 {[%emt 0:17:30]} 11. Nge2 {[%emt 0:00:00]} Rb8 {[%emt 0:14:07]} 12. Rc1 {[%emt 0:00:00]} Ba6 {[%emt 0:00:09]} 13. Ng3 {[%emt 0:00:00]} Nxa2 {[%emt 0:04:43]} 14. Nxa2 {[%emt 0:00:00]} Qxa2 {[%emt 0:00:10]} 15. b4 {[%emt 0:00:00]} Qxd2+ {[%emt 0:07:25]} 16. Kxd2 {[%emt 0:00:00]} Bxf1 {[%emt 0:00:06]} 17. Rhxf1 {[%emt 0:00:00]} cxb4 {[%emt 0:00:16]} 18. Nxf5 {[%emt 0:00:00]} Bc3+ {[%emt 0:03:27]} 19. Kd3 {[%emt 0:00:00]} d6 {[%emt 0:01:48]} 20. Nd4 {[%emt 0:00:00]} Kd7 {[%emt 0:01:36]} 21. Ne2 {[%emt 0:00:00]} Bf6 {[%emt 0:01:54]} 22. Rc4 {[%emt 0:00:21]} Rb5 {[%emt 0:01:43]} 23. Nd4 {[%emt 0:01:51]} Bxd4 {[%emt 0:02:56]} 24. Kxd4 {[%emt 0:00:22]} Ra8 {[%emt 0:00:39]} 25. Rb1 {[%emt 0:02:58]} b3 {[%emt 0:00:56]} 26. Kc3 {[%emt 0:00:33]} Rab8 {[%emt 0:05:43]} 27. Rb2 {[%emt 0:00:43]} h5 {[%emt 0:01:46]} 28. Rf4 {[%emt 0:01:47]} Rc5+ {[%emt 0:00:43]} 29. Rc4 {[%emt 0:00:28]} Rcb5 {[%emt 0:01:26]} 30. Rf4 {[%emt 0:00:07]} Rc8+ {[%emt 0:01:37]} 31. Rc4 {[%emt 0:00:12]} Rcb8 {[%emt 0:00:21]} 32. Rf4 1/2-1/2

[Event "ISR-chT 2020"]
[Site "Israel"]
[Date "2020.01.17"]
[Round "3.30"]
[White "Tarnopolsky, Anatoly"]
[Black "Friedland, Moshe"]
[Result "1-0"]
[ECO "D13"]
[WhiteElo "2306"]
[BlackElo "2257"]
[Annotator "ChessBase"]
[PlyCount "65"]
[EventDate "2020.01.10"]
[EventType "team-tourn"]
[EventCountry "ISR"]
[SourceTitle "playchess.com"]
[Source "ChessBase"]
[SourceQuality "1"]
[TimeControl "40/5400+30:1800+30"]

1. d4 {[%emt 0:00:00]} Nf6 {[%emt 0:05:34]} 2. c4 {[%emt 0:00:00]} c6 {[%emt 0:01:40]} 3. Nc3 {[%emt 0:06:04]} d5 {[%emt 0:00:04]} 4. cxd5 {[%emt 0:00:09]} cxd5 {[%emt 0:00:05]} 5. Nf3 {[%emt 0:00:08]} Nc6 {[%emt 0:01:50]} 6. Bf4 {[%emt 0:00:06]} Bf5 {[%emt 0:05:11]} 7. e3 {[%emt 0:01:16]} a6 {[%emt 0:05:32]} 8. Be2 {[%emt 0:16:53]} e6 {[%emt 0:00:25]} 9. Qb3 {[%emt 0:00:13]} Na5 {[%emt 0:18:45]} 10. Qa4+ {[%emt 0:03:39]} Nc6 {[%emt 0:00:50]} 11. Ne5 {[%emt 0:14:42]} Qb6 {[%emt 0:02:04]} 12. Nxc6 {[%emt 0:05:45]} bxc6 {[%emt 0:00:19]} 13. O-O {[%emt 0:00:11]} Be7 {[%emt 0:04:39]} 14. Qb3 {[%emt 0:04:27]} Nd7 {[%emt 0:14:19]} 15. Rfc1 {[%emt 0:05:12]} Qa7 {[%emt 0:11:21]} 16. Qa4 {[%emt 0:09:25]} c5 {[%emt 0:10:21]} 17. dxc5 {[%emt 0:01:05]} Bxc5 {[%emt 0:00:01]} 18. b4 {[%emt 0:03:36]} Bb6 {[%emt 0:00:31]} 19. b5 {[%emt 0:08:21]} Nc5 {[%emt 0:01:42]} 20. Qd1 {[%emt 0:01:32]} O-O {[%emt 0:01:13]} 21. bxa6 {[%emt 0:04:11]} Nxa6 {[%emt 0:03:16]} 22. Nb5 {[%emt 0:00:07]} Qd7 {[%emt 0:00:22]} 23. Nd4 {[%emt 0:02:49]} Bg6 {[%emt 0:01:49]} 24. Bb5 {[%emt 0:00:37]} Qa7 {[%emt 0:00:08]} 25. Nc6 {[%emt 0:01:02]} Qb7 {[%emt 0:02:18]} 26. Bd6 {[%emt 0:03:32]} Rfd8 {[%emt 0:03:45]} 27. Ne7+ {[%emt 0:03:54]} Kh8 {[%emt 0:00:04]} 28. Bc6 {[%emt 0:00:12]} Qa7 {[%emt 0:00:01]} 29. Bxa8 {[%emt 0:00:33]} Qxa8 {[%emt 0:01:50]} 30. Nxg6+ {[%emt 0:01:27]} hxg6 {[%emt 0:00:01]} 31. Be7 {[%emt 0:01:06]} Rd7 {[%emt 0:00:43]} 32. Qa4 {[%emt 0:00:14]} Qb7 {[%emt 0:00:44]} 33. Rab1 {[%emt 0:01:22]} 1-0